bitfinex-derivatives/quotes_ETHF0:USTF0_20240904
["timestamp","ask_amount","ask_price","bid_price","bid_amount"]
[1725439152890,1.2404,2406.0,2405.7,2.88]
[1725439153099,0.41572,2405.9,2405.7,2.88]
[1725439153907,1.6561,2406.0,2405.7,3.29574]
[1725439154297,3.2078,2406.1,2405.7,2.88]
[1725439154494,1.03961,2405.1,2403.6,2.68701496]
[1725439154702,3.6238,2404.2,2404.1,1.01672835]
[1725439154897,0.41601,2404.1,2403.7,2.88]
[1725439155097,0.41601,2404.1,2403.6,3.10310496]
[1725439155303,0.41601,2404.1,2403.6,2.68701496]
[1725439155503,14.49605,2404.1,2403.6,2.68701496]
[1725439155712,14.49605,2404.1,2404.0,1.59351312]
[1725439155909,0.41605,2403.9,2403.8,0.00623195]
[1725439156210,3.62385,2403.9,2403.8,0.00623195]
[1725439156503,7.78385,2403.9,2403.8,0.00623195]
[1725439157903,14.82398,2403.9,2403.8,0.00623195]
[1725439161807,8.82398,2403.9,2403.8,0.00623195]
[1725439167712,8.82398,2403.9,2403.8,1.95e-06]
[1725439176111,10.50851,2403.9,2403.8,1.95e-06]
[1725439176815,16.50851,2403.9,2403.8,1.95e-06]
[1725439182927,3.2078,2403.9,2403.8,1.95e-06]
[1725439183124,3.62385,2403.9,2403.8,1.95e-06]
[1725439183315,7.78385,2403.9,2403.8,1.95e-06]
[1725439183521,8.82398,2403.9,2403.8,1.95e-06]
[1725439183827,11.70398,2403.9,2403.8,1.95e-06]
[1725439184924,12.74411,2403.9,2403.8,1.95e-06]
[1725439185121,18.74411,2403.9,2403.8,1.95e-06]
[1725439185523,18.9471691,2403.9,2403.8,1.95e-06]
[1725439187021,11.9070391,2403.9,2403.8,1.95e-06]
[1725439188926,12.9471691,2403.9,2403.8,1.95e-06]
[1725439189130,18.9471691,2403.9,2403.8,1.95e-06]
[1725439189629,1.45654,2403.3,2403.2,0.6345]
[1725439189929,4.66434,2403.3,2403.2,0.6345]
[1725439191828,3.62395,2403.3,2403.2,0.6345]
[1725439196034,0.41615,2403.3,2403.2,0.6345]
[1725439196225,3.62395,2403.3,2403.2,0.6345]
[1725439200435,3.4319404,2403.3,2403.2,0.6345]
[1725439200635,3.8480904,2403.3,2403.2,0.6345]
[1725439200933,3.4319404,2403.3,2403.2,0.6345]
[1725439201436,3.4319404,2403.3,2403.2,1.05067]
[1725439201943,3.43190573,2403.3,2403.2,1.05067]
[1725439204342,3.84805573,2403.3,2403.2,1.05067]
[1725439204941,3.84805765,2403.3,2403.2,1.05067]
[1725439205141,3.43190765,2403.3,2403.2,1.05067]
[1725439205352,3.43190765,2403.3,2403.2,5.21147]
[1725439205353,0.22410765,2403.3,2403.2,5.21147]
[1725439205844,0.64025765,2403.3,2403.2,5.21147]
[1725439207037,0.64025765,2403.3,2403.2,4.7953]
[1725439207240,0.64025765,2403.3,2403.2,5.21147]
[1725439208139,0.64025765,2403.3,2403.2,1.05067]
[1725439208543,0.41615,2403.3,2403.2,1.05067]
[1725439208740,0.64025164,2403.3,2403.2,1.05067]
[1725439208939,0.64025164,2403.3,2403.2,0.6345]
[1725439210045,0.64025164,2403.3,2403.2,1.05067]
[1725439213155,1.4566,2403.2,2403.1,0.6302]
[1725439213360,1.68070164,2403.2,2403.1,0.6302]
[1725439214357,1.68073431,2403.2,2403.1,0.6302]
[1725439215355,0.41619,2403.1,2403.0,0.66463195]
[1725439215651,0.64032431,2403.1,2403.0,0.66463195]
[1725439216562,0.64032431,2403.1,2403.0,0.00623195]
[1725439217549,10.37116431,2403.1,2403.0,0.00623195]
[1725439218062,9.10656,2403.1,2403.0,0.00623195]
[1725439218359,9.33075124,2403.1,2403.0,0.00623195]
[1725439219160,1.24868124,2403.1,2403.0,0.00623195]
[1725439220862,9.33072153,2403.1,2403.0,0.00623195]
[1725439221464,4.12865153,2403.1,2403.0,0.00623195]
[1725439223865,3.90449,2403.1,2403.0,0.00623195]
[1725439224058,4.12867571,2403.1,2403.0,0.00623195]
[1725439224662,1.24867571,2403.1,2403.0,0.00623195]
[1725439227370,1.02449,2403.1,2403.0,0.00623195]
[1725439227566,1.24865838,2403.1,2403.0,0.00623195]
[1725439230064,2.22449,2403.1,2403.0,0.00623195]
[1725439230268,2.44866653,2403.1,2403.0,0.00623195]
[1725439231169,3.48913653,2403.1,2403.0,0.00623195]
[1725439231375,4.09403653,2403.1,2403.0,0.00623195]
[1725439232174,3.48913653,2403.1,2403.0,0.00623195]
[1725439232376,0.22417653,2403.1,2403.0,0.00623195]
[1725439232578,0.22417653,2403.1,2403.0,1.23563195]
[1725439232777,0.64036653,2403.1,2403.0,1.89723195]
[1725439233179,0.41619,2403.1,2403.0,1.89723195]
[1725439233377,0.64034509,2403.1,2403.0,1.89723195]
[1725439234877,0.64034509,2403.1,2403.0,2.31343195]
[1725439235980,0.64034509,2403.1,2403.0,1.89723195]
[1725439236579,0.64034509,2403.1,2403.0,0.00623195]
[1725439236580,1.68082073,2403.1,2403.0,0.00623195]
[1725439236783,2.30262073,2403.1,2403.0,0.00623195]
[1725439236978,2.92072073,2403.1,2403.0,0.00623195]
[1725439239479,2.07846,2403.1,2403.0,0.00623195]
[1725439239678,2.30265665,2403.1,2403.0,0.00623195]
[1725439240079,1.26218665,2403.1,2403.0,0.00623195]
[1725439241178,6.46425665,2403.1,2403.0,0.00623195]
[1725439242988,13.50472665,2403.1,2403.0,0.00623195]
[1725439243175,11.00759665,2403.1,2402.2,1.2777]
[1725439243386,3.2078,2402.3,2402.2,1.2777]
[1725439243674,5.04832665,2402.3,2402.2,1.2777]
[1725439244083,3.43199665,2402.3,2402.2,1.2777]
[1725439244287,3.2078,2402.3,2402.2,1.2777]
[1725439244784,0.00623195,2402.5,2402.2,5.4401]
[1725439244979,0.00623195,2402.5,2402.4,0.41631]
[1725439245288,0.23046482,2402.5,2402.3,0.41631]
[1725439245473,0.00623195,2402.5,2402.4,0.41631]
[1725439245678,0.23046609,2402.5,2402.4,0.41631]
[1725439246079,0.00623195,2402.5,2402.4,4.57871]
[1725439246785,2.88623195,2402.5,2402.2,1.69403]
[1725439246990,3.29633,2402.3,2402.2,1.2777]
[1725439247284,0.64056702,2402.3,2402.2,1.2777]
[1725439248486,0.41633,2402.3,2402.2,1.2777]
[1725439249681,4.27762,2402.4,2402.2,1.2777]
[1725439249996,0.41635,2402.2,2402.0,0.6668]
[1725439250185,0.41635,2402.2,2402.1,1.2163]
[1725439250597,0.6406541,2402.2,2402.1,1.2163]
[1725439250788,0.41634,2402.2,2402.1,1.2163]
[1725439251090,0.41633,2402.3,2402.1,1.2163]
[1725439251387,0.41635,2402.2,2401.8,0.4164]
[1725439251588,6.7413,2402.4,2401.8,0.4164]
[1725439251589,0.41634,2402.3,2401.9,1.9175]
[1725439251787,7.15761,2402.4,2401.9,2.33388]
[1725439251993,4.27761,2402.4,2402.0,0.41638]
[1725439252185,0.22431434,2402.3,2402.0,0.41638]
[1725439252390,4.27761,2402.4,2402.0,0.41638]
[1725439252583,0.22429793,2402.3,2401.9,2.33388]
[1725439252781,0.41633,2402.3,2401.9,2.33388]
[1725439253785,0.41634,2402.2,2401.9,1.9175]
[1725439254187,3.2078,2402.1,2401.9,1.9175]
[1725439254687,3.2078,2402.1,2401.9,2.33389]
[1725439254987,3.2078,2402.1,2401.9,1.9175]
[1725439255587,3.2078,2402.1,2401.9,2.33389]
[1725439255886,3.62416,2402.1,2401.9,1.9175]
[1725439256090,3.2078,2402.1,2401.9,2.33389]
[1725439256293,3.2078,2402.1,2402.0,0.41638]
[1725439256694,3.2078,2402.1,2401.9,2.33389]
[1725439256993,0.41635,2402.2,2401.9,2.33389]
[1725439257498,0.41635,2402.2,2401.9,1.9175]
[1725439257680,0.41635,2402.2,2401.9,2.33388]
[1725439258191,0.41635,2402.2,2402.0,0.41637]
[1725439259499,0.41635,2402.2,2402.1,0.41636]
[1725439259690,0.41635,2402.2,2402.0,0.41636]
[1725439260293,0.41636,2402.1,2402.0,0.41636]
[1725439260498,0.41635,2402.2,2402.0,0.41636]
[1725439260793,0.41635,2402.2,2402.0,0.41637]
[1725439261096,3.2078,2402.3,2402.1,4.1632]
[1725439261301,0.00623195,2402.5,2402.0,2.88]
[1725439261491,3.62413,2402.3,2402.1,0.41634]
[1725439261793,3.62413,2402.3,2401.9,1.9175]
[1725439261794,0.41638,2402.0,2401.9,1.9175]
[1725439261993,3.62418,2402.0,2401.9,1.9175]
[1725439262200,0.41645,2401.7,2401.5,0.41645]
[1725439262395,3.62425,2401.6,2401.5,0.41645]
[1725439262586,3.2078,2401.6,2401.5,0.41645]
[1725439262790,3.2078,2401.6,2401.5,0.41646]
[1725439263001,0.41643,2401.7,2401.5,4.58046]
[1725439263300,0.41646,2401.5,2401.4,1.27]
[1725439263491,0.41646,2401.5,2401.4,1.903]
[1725439264392,3.2078,2401.6,2401.4,1.903]
[1725439264592,3.2078,2401.6,2401.5,4.58046]
[1725439265098,0.41646,2401.5,2401.4,1.27]
[1725439265297,1.45769,2401.4,2401.3,1.63261696]
[1725439265801,12.88737438,2401.4,2401.3,1.63261696]
[1725439266000,12.88740694,2401.4,2401.3,1.63261696]
[1725439268098,4.33782,2401.2,2401.1,2.17872284]
[1725439268302,7.54562,2401.2,2401.1,2.17872284]
[1725439268604,11.71042,2401.2,2401.1,2.17872284]
[1725439269591,10.66912,2401.2,2401.1,2.17872284]
[1725439270296,11.71042,2401.2,2401.1,2.17872284]
[1725439270895,6.50432,2401.2,2401.1,2.17872284]
[1725439275598,3.2078,2401.2,2401.1,2.17872284]
[1725439275797,3.62432,2401.2,2401.1,2.17872284]
[1725439276599,3.2078,2401.2,2401.1,2.17872284]
[1725439276793,3.2078,2401.2,2401.1,2.59525284]
[1725439277101,3.62432,2401.2,2401.1,2.17872284]
[1725439278107,7.54562,2401.2,2401.1,2.17872284]
[1725439278407,11.71042,2401.2,2401.1,2.17872284]
[1725439278609,10.66912,2401.2,2401.1,2.17872284]
[1725439279100,3.62432,2401.2,2401.1,2.17872284]
[1725439279513,6.50432,2401.2,2401.1,2.17872284]
[1725439283609,6.0878,2401.2,2401.1,2.17872284]
[1725439284111,6.50432,2401.2,2401.1,2.17872284]
[1725439285010,3.2078,2401.2,2401.1,2.59525284]
[1725439285309,3.62432,2401.2,2401.1,2.17872284]
[1725439286105,0.41654,2401.1,2400.9,0.41656]
[1725439286402,3.2078,2401.2,2400.9,0.41656]
[1725439286403,3.63057532,2401.2,2400.9,0.41656]
[1725439287109,0.41654,2401.1,2400.9,0.41656]
[1725439287314,3.63057532,2401.2,2400.9,0.41656]
[1725439287803,3.2078,2401.0,2400.9,0.41656]
[1725439290711,0.42276532,2401.2,2401.0,0.41653]
[1725439290912,0.41653,2401.1,2401.0,0.41653]
[1725439291706,0.00624532,2401.2,2401.1,0.41653]
[1725439292207,3.2078,2401.6,2401.1,11.20614]
[1725439292412,3.2078,2401.6,2401.2,0.6637]
[1725439292600,0.41647,2401.5,2401.4,0.41647]
[1725439295409,0.41648,2401.4,2401.3,1.06379]
[1725439296612,0.41648,2401.5,2401.4,0.41648]
[1725439297110,0.4165,2401.3,2401.2,1.29354532]
[1725439297421,3.6243,2401.3,2401.2,1.29354532]
[1725439299217,4.66555,2401.3,2401.2,1.29354532]
[1725439299616,4.66555,2401.3,2401.2,0.66994532]
[1725439299916,7.54555,2401.3,2401.2,0.66994532]
[1725439301914,7.7700397,2401.3,2401.2,0.00624532]
[1725439304211,18.7516,2401.3,2401.2,0.00624532]
[1725439304610,18.97611039,2401.3,2401.2,0.00624532]
[1725439305005,0.41662,2400.7,2400.4,0.41664]
[1725439305210,0.41662,2400.7,2400.5,0.6804]
[1725439305410,0.41662,2400.7,2400.5,1.09704]
[1725439305616,0.41662,2400.7,2400.5,0.6804]
[1725439305617,3.62442,2400.7,2400.5,0.6804]
[1725439306014,3.2078,2400.7,2400.5,1.09703]
[1725439306214,3.2078,2400.7,2400.5,1.09702]
[1725439306818,3.2078,2400.7,2400.6,0.41662]
[1725439307717,3.6244,2400.7,2400.6,0.41662]
[1725439308023,3.2078,2400.7,2400.6,0.41662]
[1725439308212,3.2078,2400.7,2400.6,4.58222]
[1725439308818,0.4166,2400.8,2400.7,0.4166]
[1725439309015,0.64110969,2400.8,2400.7,0.4166]
[1725439309213,0.64110969,2400.8,2400.7,4.8022]
[1725439309917,0.41662,2400.6,2400.5,0.6804]
[1725439310119,3.2078,2400.6,2400.5,1.09704]
[1725439310321,3.2078,2400.6,2400.5,5.26264]
[1725439310822,3.62442,2400.6,2400.5,5.26264]
[1725439311410,3.8489624,2400.6,2400.5,5.26264]
[1725439311614,3.62442,2400.6,2400.5,5.26264]
[1725439311925,3.2078,2400.6,2400.5,5.26264]
[1725439312720,3.62442,2400.6,2400.5,5.26264]
[1725439313117,3.62442,2400.6,2400.5,0.6804]
[1725439314331,3.62442,2400.6,2400.5,1.09704]
[1725439319022,3.2078,2400.6,2400.5,1.09704]
[1725439319523,3.62442,2400.6,2400.5,1.09704]
[1725439320421,3.2078,2401.0,2400.9,0.41657]
[1725439320619,0.22448484,2401.0,2400.9,0.41657]
[1725439320827,3.2078,2401.3,2401.2,0.41652]
[1725439321028,3.43224662,2401.3,2401.2,0.41652]
[1725439321422,3.43224662,2401.3,2401.2,4.58132]
[1725439321622,3.2078,2401.3,2401.2,4.58132]
[1725439322322,3.6243,2401.3,2401.2,4.58132]
[1725439322724,3.2078,2401.3,2401.2,4.58132]
[1725439323517,0.41647,2401.5,2401.2,4.1648]
[1725439323722,0.41647,2401.5,2401.0,1.3187]
[1725439323723,0.2244036,2401.4,2401.3,1.06999]
[1725439323929,0.6408836,2401.4,2401.3,1.06999]
[1725439324234,0.2244036,2401.4,2401.3,1.06999]
[1725439324823,3.4322036,2401.4,2401.1,0.41652]
[1725439325031,0.41652,2401.2,2401.1,0.41652]
[1725439325421,0.41652,2401.2,2401.1,4.58132]
[1725439325622,0.41653,2401.1,2401.0,1.9722]
[1725439325816,0.41653,2401.1,2401.0,0.6596]
[1725439326027,0.41653,2401.1,2400.7,0.4166]
[1725439326028,0.4166,2400.8,2400.7,0.4166]
[1725439326427,0.4166,2400.8,2400.7,4.1656]
[1725439326624,0.4166,2400.8,2400.7,0.4166]
[1725439326820,1.05506,2401.0,2400.7,4.1656]
[1725439327018,3.62434,2401.1,2400.6,2.0131]
[1725439327222,0.41656,2401.0,2400.9,0.41656]
[1725439327623,0.41656,2401.0,2400.9,4.58136]
[1725439327820,0.41656,2401.0,2400.9,0.41656]
[1725439328024,0.41656,2401.0,2400.9,4.58136]
[1725439328729,0.41657,2400.9,2400.8,0.41657]
[1725439329031,0.41657,2400.9,2400.7,0.41659]
[1725439329231,3.6244,2400.8,2400.6,1.3596]
[1725439329432,3.2078,2401.1,2400.7,7.0456]
[1725439329632,0.41655,2401.0,2400.8,0.41658]
[1725439329927,0.41657,2400.9,2400.8,0.41658]
[1725439330123,0.41656,2401.0,2400.8,4.58138]
[1725439330430,0.41656,2401.0,2400.7,2.88]
[1725439330431,0.41657,2400.9,2400.7,0.4166]
[1725439330625,0.41657,2400.9,2400.8,0.41659]
[1725439330825,0.41659,2400.8,2400.6,1.3596]
[1725439331025,4.24917,2401.1,2400.6,1.3596]
[1725439331026,4.24917,2401.1,2400.7,0.41659]
[1725439331329,0.41659,2400.8,2400.7,0.4166]
[1725439331532,0.41658,2400.9,2400.7,0.4166]
[1725439331833,0.41659,2400.8,2400.6,1.77621]
[1725439332024,0.41664,2400.5,2400.4,1.08756525]
[1725439332223,7.12917,2401.1,2400.4,5.92046525]
[1725439332224,1.04581,2400.7,2400.4,5.92046525]
[1725439332426,1.04581,2400.7,2400.5,0.41664]
[1725439332627,1.04581,2400.7,2400.6,0.41662]
[1725439332929,1.04581,2400.7,2400.5,4.1656]
[1725439333234,1.04141,2401.0,2400.5,4.1656]
[1725439333535,0.64108171,2400.9,2400.8,0.41659]
[1725439333738,0.22450171,2400.9,2400.8,0.41659]
[1725439334036,0.41657,2400.9,2400.8,0.41659]
[1725439334228,0.64107167,2400.9,2400.8,0.41659]
[1725439334528,0.64107167,2400.9,2400.7,0.41659]
[1725439334728,0.41659,2400.8,2400.7,0.41659]
[1725439334929,0.41658,2400.9,2400.7,0.41659]
[1725439335631,0.41659,2400.8,2400.7,0.41659]
[1725439336035,0.41659,2400.8,2400.7,4.58219]
[1725439336231,6.19673876,2400.8,2400.2,4.29815941]
[1725439336529,0.41667,2400.4,2400.2,1.50703941]
[1725439336733,0.61088443,2400.5,2400.2,1.50703941]
[1725439336734,1.05087,2400.3,2400.2,1.50703941]
[1725439337138,0.6342,2400.3,2400.2,5.25675941]
[1725439338037,0.6342,2400.3,2400.2,5.67344941]
[1725439338238,0.6342,2400.3,2400.2,1.09035941]
[1725439338239,1.66175443,2400.3,2400.2,1.09035941]
[1725439339731,2.70344443,2400.3,2400.2,1.09035941]
[1725439339935,2.92791285,2400.3,2400.2,1.09035941]
[1725439340529,1.88622285,2400.3,2400.2,1.09035941]
[1725439342842,1.24508443,2400.3,2400.2,1.09035941]
[1725439343035,1.46957363,2400.3,2400.2,1.09035941]
[1725439343243,1.66175443,2400.3,2400.2,1.09035941]
[1725439343937,1.46958734,2400.3,2400.2,1.09035941]
[1725439344132,1.24508443,2400.3,2400.2,1.77455941]
[1725439344345,1.46952299,2400.3,2400.2,1.77455941]
[1725439344637,1.88619299,2400.3,2400.2,1.77455941]
[1725439345035,1.88619299,2400.3,2400.2,0.6842]
[1725439346138,1.46952299,2400.3,2400.2,0.6842]
[1725439346448,1.88615703,2400.3,2400.2,0.6842]
[1725439346747,1.46948849,2400.3,2400.2,0.6842]
[1725439346936,0.61088443,2400.3,2400.2,0.6842]
[1725439347138,0.61088443,2400.3,2400.2,1.10089]
[1725439347443,3.63068532,2400.5,2400.2,1.10089]
[1725439347444,3.21404532,2400.5,2400.2,4.8506]
[1725439347743,0.61088443,2400.4,2400.3,1.07146]
[1725439347944,0.61088443,2400.4,2400.3,1.74896]
[1725439348541,0.61088443,2400.4,2400.3,1.3323]
[1725439348732,0.61088443,2400.4,2400.3,1.74897]
[1725439349143,0.61088443,2400.4,2400.3,1.3323]
[1725439349341,1.02753443,2400.4,2400.3,1.3323]
[1725439350247,1.4586,2399.9,2399.8,1.68509557]
[1725439350442,6.72883326,2399.9,2399.6,1.63491969]
[1725439350641,0.64103326,2399.8,2399.6,1.63491969]
[1725439350950,0.22427326,2399.7,2399.6,1.63491969]
[1725439351248,3.2078,2399.9,2399.7,4.1672]
[1725439351440,3.2078,2399.9,2399.8,1.9237]
[1725439351845,3.2078,2399.9,2399.8,6.0909]
[1725439353652,3.2078,2399.9,2399.8,1.9237]
[1725439353852,3.62454,2399.9,2399.8,1.9237]
[1725439354554,3.2078,2399.9,2399.8,1.9237]
[1725439354945,3.62454,2399.9,2399.8,1.9237]
[1725439355452,3.2078,2399.9,2399.8,1.9237]
[1725439355844,3.62454,2399.9,2399.8,1.9237]
[1725439356255,3.2078,2399.9,2399.8,1.9237]
[1725439356458,3.62454,2399.9,2399.8,1.9237]
[1725439357656,3.2078,2399.9,2399.8,1.9237]
[1725439357858,3.62454,2399.9,2399.8,1.9237]
[1725439358558,3.62454,2399.9,2399.8,0.6478]
[1725439359961,0.41676,2399.8,2399.4,0.41682]
[1725439360258,0.41676,2399.8,2399.5,0.5704]
[1725439360448,0.41676,2399.8,2399.6,0.5274]
[1725439360943,3.2078,2399.7,2399.6,0.5274]
[1725439361856,3.62458,2399.7,2399.6,0.5274]
[1725439362153,3.62458,2399.7,2399.5,0.5704]
[1725439362154,0.41679,2399.6,2399.5,0.5704]
[1725439363550,0.41679,2399.6,2399.3,0.5274]
[1725439363856,0.41681,2399.6,2399.4,0.5314]
[1725439364057,6.0878,2399.7,2399.4,0.5314]
[1725439364557,0.41681,2399.5,2399.4,0.5314]
[1725439364856,0.4168,2399.6,2399.4,0.5314]
[1725439366357,6.0878,2399.7,2399.5,4.584]
[1725439366358,3.2078,2399.7,2399.5,4.584]
[1725439366661,3.2078,2399.7,2399.5,4.58399]
[1725439367053,3.2078,2399.7,2399.5,0.41679]
[1725439367249,3.2078,2399.7,2399.6,0.41679]
[1725439367455,3.2078,2399.7,2399.6,4.58399]
[1725439367655,3.62458,2399.7,2399.6,4.1672]
[1725439367862,0.41679,2399.6,2399.4,0.94822]
[1725439369759,0.41681,2399.5,2399.4,0.5314]
[1725439373762,0.4168,2399.6,2399.4,0.5314]
[1725439373967,0.4168,2399.6,2399.4,0.94822]
[1725439374168,0.41681,2399.5,2399.4,0.5314]
[1725439376472,0.41681,2399.6,2399.4,0.94823]
[1725439376975,0.41681,2399.5,2399.4,0.5314]
[1725439378577,0.4168,2399.6,2399.4,0.94822]
[1725439380078,0.41681,2399.5,2399.4,0.5314]
[1725439380476,0.41681,2399.6,2399.4,0.94823]
[1725439381173,3.62461,2399.5,2399.4,0.5314]
[1725439381371,3.62461,2399.5,2399.4,0.94823]
[1725439381576,3.2078,2399.5,2399.4,0.94823]
[1725439383481,1.7623,2399.9,2399.6,0.41678]
[1725439383772,0.64095246,2399.8,2399.7,1.49898]
[1725439383979,3.62457,2399.8,2399.7,1.0822]
[1725439384276,3.84875081,2399.8,2399.6,0.41678]
[1725439384477,1.2,2399.7,2399.6,0.41678]
[1725439384681,1.61678,2399.7,2399.5,0.9706]
[1725439384872,0.41679,2399.6,2399.5,0.5538]
[1725439385181,1.45878,2399.6,2399.5,0.5538]
[1725439385381,0.41681,2399.5,2399.4,0.5314]
[1725439385684,4.18641,2399.5,2399.4,0.5314]
[1725439387082,3.2078,2399.5,2399.4,0.94823]
[1725439387383,3.2078,2399.5,2399.4,0.5314]
[1725439387583,3.2078,2399.5,2399.4,0.94823]
[1725439387777,3.2078,2399.5,2399.4,5.11623]
[1725439388174,3.2078,2399.5,2399.4,0.94823]
[1725439388375,3.2078,2399.5,2399.4,5.11623]
[1725439389778,3.2078,2399.5,2399.4,4.6994]
[1725439389977,3.2078,2399.8,2399.7,0.41677]
[1725439390176,3.4319488,2399.8,2399.7,0.41677]
[1725439390777,3.2078,2399.8,2399.7,0.41677]
[1725439390987,3.84863025,2399.8,2399.6,0.41678]
[1725439391189,3.62456,2399.8,2399.6,0.41678]
[1725439391377,0.41681,2399.6,2399.4,0.5314]
[1725439391575,3.62461,2399.5,2399.4,0.5314]
[1725439392088,3.62461,2399.5,2399.4,4.6994]
[1725439393591,3.62461,2399.5,2399.4,5.11623]
[1725439393885,3.2078,2399.5,2399.4,5.11623]
[1725439395287,3.43188541,2399.5,2399.4,5.11623]
[1725439395885,3.43188541,2399.5,2399.4,0.94823]
[1725439396088,3.43188541,2399.5,2399.4,5.11623]
[1725439396391,3.43188541,2399.5,2399.4,0.94823]
[1725439397082,3.43188541,2399.5,2399.4,5.11623]
[1725439397482,3.43189149,2399.5,2399.4,5.11623]
[1725439398787,3.43189149,2399.5,2399.4,6.20781836]
[1725439399288,3.2078,2399.5,2399.4,6.20781836]
[1725439399898,3.43189676,2399.5,2399.4,6.20781836]
[1725439400289,3.2078,2399.5,2399.4,6.20781836]
[1725439400897,3.2078,2399.9,2399.6,1.04199]
[1725439401083,3.2078,2399.9,2399.8,0.41676]
[1725439401279,3.4318865,2399.9,2399.8,0.41676]
[1725439401495,3.4318865,2399.9,2399.8,0.93576]
[1725439401698,3.4318865,2399.9,2399.8,12.30296]
[1725439402002,3.95714532,2400.5,2400.4,0.41665]
[1725439402294,0.41666,2400.4,2400.2,0.41668]
[1725439402490,0.41667,2400.3,2400.2,0.5108]
[1725439402793,2.24169,2400.3,2399.9,2.05589193]
[1725439402997,3.6245,2400.2,2400.0,0.41672]
[1725439403297,3.6245,2400.2,2399.9,2.05588193]
[1725439403494,0.41672,2400.0,2399.9,1.63915193]
[1725439404194,0.94712,2400.1,2399.9,2.05589193]
[1725439404692,0.94712,2400.1,2400.0,0.41672]
[1725439404693,0.5304,2400.1,2400.0,0.41672]
[1725439405481,0.5381,2400.4,2400.2,0.41668]
[1725439405693,3.2078,2400.2,2400.1,0.41671]
[1725439406084,3.2078,2400.2,2400.1,4.58311]
[1725439406295,3.2078,2400.2,2400.1,0.41671]
[1725439406488,3.2078,2400.2,2400.1,4.58311]
[1725439407605,0.94706,2400.4,2400.2,0.41668]
[1725439407892,3.2078,2400.3,2400.2,2.02168]
[1725439409989,0.00624532,2400.5,2400.4,0.41665]
[1725439412096,3.2078,2400.4,2400.3,0.41667]
[1725439412693,3.2078,2400.4,2400.2,1.50188]
[1725439412888,3.62447,2400.4,2400.2,1.50188]
[1725439413389,0.41669,2400.3,2400.1,0.41671]
[1725439414085,0.41669,2400.3,2400.2,0.41669]
[1725439414492,3.2078,2400.4,2400.3,0.41667]
[1725439414899,3.62445,2400.4,2400.2,0.41668]
[1725439415122,0.41667,2400.3,2400.2,0.41668]
[1725439415394,3.2078,2400.4,2400.0,0.5137]
[1725439415395,3.62446,2400.4,2400.0,0.5137]
[1725439415595,3.62446,2400.4,2400.2,0.41668]
[1725439417300,3.62446,2400.4,2400.3,0.41667]
[1725439417495,3.2078,2400.4,2400.0,0.5137]
[1725439417793,0.41676,2399.8,2399.6,1.50604489]
[1725439417995,0.41676,2399.8,2399.6,1.5953]
[1725439418199,3.2078,2399.8,2399.5,4.16837987]
[1725439418394,0.41679,2399.6,2399.5,4.16837987]
[1725439418801,3.2078,2399.8,2399.5,4.16837987]
[1725439419001,3.2078,2399.8,2399.7,0.41678]
[1725439419996,3.2078,2399.8,2399.5,4.16837987]
[1725439419997,0.5602,2400.0,2399.9,0.41674]
[1725439420201,0.5602,2400.0,2399.8,0.41675]
[1725439420402,3.2078,2399.9,2399.8,0.41675]
[1725439422601,3.2078,2400.2,2400.0,0.41672]
[1725439422904,3.62449,2400.2,2400.1,1.1015]
[1725439423106,3.2078,2400.2,2400.0,0.41672]
[1725439423307,3.2078,2400.2,2400.0,1.50662]
[1725439423513,3.6245,2400.2,2400.0,1.0899]
[1725439424007,3.6245,2400.2,2400.0,1.50662]
[1725439424397,0.41671,2400.1,2400.0,1.0899]
[1725439425406,3.6245,2400.2,2400.0,1.0899]
[1725439425804,3.2078,2400.2,2400.1,0.41671]
[1725439426404,3.2078,2400.2,2400.1,4.58311]
[1725439426709,3.2078,2400.2,2400.1,0.41671]
[1725439427010,3.2078,2400.2,2400.1,4.58311]
[1725439428013,3.2078,2400.2,2400.1,0.41671]
[1725439428710,3.2078,2400.2,2400.1,4.58311]
[1725439429211,3.2078,2400.2,2400.1,0.41671]
[1725439429612,3.2078,2400.2,2400.1,4.58311]
[1725439431214,3.2078,2400.2,2400.1,10.58311]
[1725439432109,3.2078,2400.2,2400.1,4.58311]
[1725439432308,3.2078,2400.2,2400.1,10.58311]
[1725439432706,3.2078,2400.2,2400.1,4.58311]
[1725439437425,3.2078,2400.2,2400.1,10.58311]
[1725439438408,3.2078,2400.2,2400.1,0.41671]
[1725439438609,3.2078,2400.2,2400.0,1.50661]
[1725439438808,3.2078,2400.2,2400.1,0.41671]
[1725439439019,3.7459,2400.2,2400.0,1.0899]
[1725439439213,3.2078,2400.2,2400.1,0.41671]
[1725439439717,3.2078,2400.2,2400.1,4.58311]
[1725439440128,3.2078,2400.2,2400.0,1.50661]
[1725439440819,3.2078,2400.2,2399.9,1.6141054]
[1725439441015,0.41671,2400.1,2399.9,2.1483054]
[1725439441414,3.2078,2400.2,2399.9,2.1483054]
[1725439441625,3.6245,2400.2,2399.9,2.1483054]
[1725439442123,3.6245,2400.2,2399.9,2.5650454]
[1725439442327,3.6245,2400.2,2399.9,2.1483054]
[1725439442515,0.41671,2400.1,2399.9,2.1483054]
[1725439442722,0.41672,2400.1,2399.9,2.1483054]
[1725439442923,3.2078,2400.2,2399.9,2.5650354]
[1725439443120,0.41671,2400.1,2399.9,2.1483054]
[1725439443428,3.6245,2400.2,2399.9,2.1483054]
[1725439443619,0.41672,2400.0,2399.9,1.6236054]
[1725439443821,0.41672,2400.1,2399.9,1.6236054]
[1725439444327,0.41671,2400.1,2399.9,1.6236054]
[1725439445432,4.58312,2400.0,2399.9,1.0894054]
[1725439445730,1.66273145,2400.0,2399.9,1.0894054]
[1725439445921,5.82913145,2400.0,2399.9,1.0894054]
[1725439446117,5.82913145,2400.0,2399.8,1.63433747]
[1725439446118,5.6258,2399.9,2399.8,1.58226637]
[1725439446325,10.41166,2399.9,2399.8,1.58226637]
[1725439446526,10.41166,2399.9,2399.6,2.18371426]